[Event "Olomouc Chess Summer-IM 2022"]
[Site "Olomouc"]
[Date "2022.08.15"]
[Round "4.9"]
[White "Poschadel, Andreas Gregor"]
[Black "Jasny, Stanislav"]
[Result "1/2-1/2"]
[ECO "B80"]
[WhiteElo "2101"]
[BlackElo "2261"]
[Annotator "TA"]
[PlyCount "28"]
[EventDate "2022.08.10"]
[EventCountry "CZE"]
[SourceTitle "playchess.com"]
[Source "ChessBase"]
[SourceQuality "1"]
[TimeControl "40/5400+30:1800+30"]

{[%evp 15,28,0,0,-46,-41,-39,-37,-52,-37,-59,-50,-55,-51,-93,-60]} 1. e4 c5 2. Nf3 e6 3. d4 cxd4 4. Nxd4 d6 5. Nc3 {[%cal Bb1c3,Bc3a2,Ba2b4][%mdl 32]} a6 6. Be3 Nf6 7. Qd2 b5 8. f3 Nbd7 9. a4 {B80: Sicilian Scheveningen: 6 g3 and 6 Be3, including English Attack.} (9. a3 $11) 9... b4 $15 10. Na2 d5 {[%cal Bd6d5,Bd5e4][%mdl 32]} 11. Nxb4 dxe4 12. Be2 Bb7 13. O-O Qc7 {[#]} 14. c4 $146 ({Predecessor:} 14. f4 Bc5 15. c4 Rd8 16. Nbc2 e5 17. fxe5 Nxe5 18. h3 O-O 19. Qe1 Rfe8 20. Nf5 {1-0 (47) Karthikeyan,M (2299)-Sundararajan,K (2450) Kolkata 2012}) 14... Nc5 {White got outplayed after the opening.  Weighted Error Value: White=0.19 (very precise) /Black=0.00 (flawless)} 1/2-1/2

[Event "Olomouc Chess Summer-IM 2022"]
[Site "Olomouc"]
[Date "2022.08.15"]
[Round "4.11"]
[White "Obsivac, Josef"]
[Black "Camarena Jimenez, Rufino"]
[Result "1-0"]
[ECO "E71"]
[WhiteElo "2272"]
[BlackElo "2298"]
[Annotator "NA RC"]
[PlyCount "79"]
[EventDate "2022.08.10"]
[EventCountry "CZE"]
[SourceTitle "playchess.com"]
[Source "ChessBase"]
[SourceQuality "1"]
[TimeControl "40/5400+30:1800+30"]

1. d4 {[%emt 0:00:04]} Nf6 {[%emt 0:00:11]} 2. c4 {[%emt 0:00:10]} g6 {[%emt 0:00:29]} 3. Nc3 {[%emt 0:00:24]} Bg7 {[%emt 0:00:11]} 4. e4 {[%emt 0:00:07]} d6 {[%emt 0:00:04]} 5. h3 {[%emt 0:00:43]} O-O {[%emt 0:00:14]} 6. Be3 {[%emt 0:01:06]} e5 {[%emt 0:00:23]} 7. d5 {[%emt 0:00:07]} a5 {[%emt 0:00:11]} 8. g4 {[%emt 0:00:30]} Na6 {[%emt 0:00:15]} 9. Nf3 {[%emt 0:01:14]} Nd7 {[%emt 0:01:39]} 10. Rg1 {[%emt 0:08:56]} Ndc5 {[%emt 0:00:28]} 11. a3 {[%emt 0:03:15]} a4 {[%emt 0:00:15]} 12. Nd2 {[%emt 0:01:30]} Bd7 {[%emt 0:00:15]} 13. Qf3 {[%emt 0:20:28]} c6 {[%emt 0:05:21]} 14. Be2 {[%emt 0:02:45]} cxd5 {[%emt 0:04:27]} 15. cxd5 {[%emt 0:01:38]} b5 {[%emt 0:00:25]} 16. Kf1 {[%emt 0:12:02]} b4 {[%emt 0:12:41]} 17. Nd1 {[%emt 0:00:23]} bxa3 {[%emt 0:10:54]} 18. bxa3 {[%emt 0:00:10]} Kh8 {[%emt 0:08:33]} 19. Qg3 {[%emt 0:03:28]} Rg8 {[%emt 0:12:36]} 20. g5 {[%emt 0:19:32]} Nb3 {[%emt 0:04:09]} 21. Nxb3 {[%emt 0:01:16]} axb3 {[%emt 0:00:06]} 22. Rb1 {[%emt 0:00:35]} Qb8 {[%emt 0:01:33]} 23. Kg2 {[%emt 0:08:19]} Rc8 {[%emt 0:01:30]} 24. Bg4 {[%emt 0:01:37]} Bxg4 {[%emt 0:01:09]} 25. hxg4 {[%emt 0:01:20]} Qb5 {[%emt 0:00:46]} 26. Qf3 {[%emt 0:01:42]} Rab8 {[%emt 0:06:44]} 27. Rh1 {[%emt 0:00:54]} Kg8 {[%emt 0:01:13]} 28. Nb2 {[%emt 0:01:04]} Rb7 {[%emt 0:03:11]} 29. Rh4 {[%emt 0:01:08]} Rc2 {[%emt 0:09:16]} 30. Qh3 {[%emt 0:03:51]} h5 {[%emt 0:07:59]} 31. gxh5 {[%emt 0:01:23]} Qd7 {[%emt 0:01:26]} 32. Qf3 {[%emt 0:01:12]} Nc5 {[%emt 0:01:12]} 33. h6 {[%emt 0:01:32]} f5 {[%emt 0:03:28]} 34. gxf6 {[%emt 0:00:50]} Bf8 {[%emt 0:00:27]} 35. h7+ {[%emt 0:00:23]} Kh8 {[%emt 0:00:07]} 36. Qg3 {[%emt 0:01:51]} Qf7 {[%emt 0:02:09]} 37. Rg4 {[%emt 0:00:24]} Nd7 {[%emt 0:00:13]} 38. Rxg6 {[%emt 0:00:27]} Nxf6 {[%emt 0:02:11]} 39. Rxf6 {[%emt 0:00:21]} Qg7 {[%emt 0:00:30]} 40. Rg6 {[%emt 0:00:15]} 1-0

[Event "Olomouc Chess Summer-IM 2022"]
[Site "Olomouc"]
[Date "2022.08.15"]
[Round "4.12"]
[White "Shubin, Daniel"]
[Black "Wiley, Tom E"]
[Result "1/2-1/2"]
[ECO "C15"]
[WhiteElo "2120"]
[BlackElo "2169"]
[Annotator "NA RC"]
[PlyCount "93"]
[EventDate "2022.08.10"]
[EventCountry "CZE"]
[SourceTitle "playchess.com"]
[Source "ChessBase"]
[SourceQuality "1"]
[TimeControl "40/5400+30:1800+30"]

1. e4 {[%emt 0:00:02]} e6 {[%emt 0:00:04]} 2. d4 {[%emt 0:00:07]} d5 {[%emt 0:00:04]} 3. Nc3 {[%emt 0:00:04]} Bb4 {[%emt 0:00:04]} 4. exd5 {[%emt 0:00:04]} exd5 {[%emt 0:00:04]} 5. Bd3 {[%emt 0:00:05]} Nc6 {[%emt 0:00:10]} 6. Be3 {[%emt 0:00:09]} Nge7 {[%emt 0:01:18]} 7. Qf3 {[%emt 0:00:08]} Be6 {[%emt 0:00:23]} 8. Nge2 {[%emt 0:00:06]} Qd7 {[%emt 0:00:15]} 9. O-O {[%emt 0:01:18]} O-O-O {[%emt 0:04:00]} 10. a3 {[%emt 0:01:32]} Bxc3 {[%emt 0:01:52]} 11. bxc3 {[%emt 0:00:24]} Na5 {[%emt 0:05:37]} 12. Rab1 {[%emt 0:07:48]} Bf5 {[%emt 0:16:32]} 13. Nc1 {[%emt 0:12:39]} f6 {[%emt 0:02:09]} 14. Nb3 {[%emt 0:07:43]} Nxb3 {[%emt 0:02:55]} 15. Rxb3 {[%emt 0:00:08]} Bxd3 {[%emt 0:11:36]} 16. cxd3 {[%emt 0:00:03]} h5 {[%emt 0:00:56]} 17. Rfb1 {[%emt 0:05:34]} b6 {[%emt 0:00:18]} 18. Qd1 {[%emt 0:16:13]} Qg4 {[%emt 0:04:01]} 19. f3 {[%emt 0:06:00]} Qg6 {[%emt 0:00:29]} 20. c4 {[%emt 0:03:29]} Nf5 {[%emt 0:02:07]} 21. Bf2 {[%emt 0:00:57]} Rhe8 {[%emt 0:06:55]} 22. c5 {[%emt 0:00:53]} Ne3 {[%emt 0:30:02]} 23. Bxe3 {[%emt 0:00:08]} Rxe3 {[%emt 0:00:07]} 24. cxb6 {[%emt 0:00:58]} axb6 {[%emt 0:00:22]} 25. Rc3 {[%emt 0:02:51]} Rde8 {[%emt 0:00:42]} 26. Qa4 {[%emt 0:02:24]} Re1+ {[%emt 0:07:02]} 27. Rxe1 {[%emt 0:01:02]} Rxe1+ {[%emt 0:00:02]} 28. Kf2 {[%emt 0:00:08]} Re7 {[%emt 0:02:27]} 29. Qa8+ {[%emt 0:06:13]} Kd7 {[%emt 0:00:01]} 30. Qxd5+ {[%emt 0:00:07]} Ke8 {[%emt 0:00:10]} 31. Qg8+ {[%emt 0:00:13]} Kd7 {[%emt 0:00:01]} 32. Qb8 {[%emt 0:01:07]} Kd6 {[%emt 0:00:32]} 33. Qd8+ {[%emt 0:00:56]} Rd7 {[%emt 0:00:25]} 34. Qf8+ {[%emt 0:00:13]} Kd5 {[%emt 0:00:51]} 35. Qb4 {[%emt 0:06:58]} Qg5 {[%emt 0:02:17]} 36. Rc2 {[%emt 0:17:06]} Qh4+ {[%emt 0:00:30]} 37. Ke3 {[%emt 0:00:17]} Qxh2 {[%emt 0:00:43]} 38. Re2 {[%emt 0:02:14]} Kc6 {[%emt 0:00:46]} 39. Qa4+ {[%emt 0:00:36]} Kd6 {[%emt 0:00:04]} 40. Qb4+ {[%emt 0:00:45]} Kc6 {[%emt 0:00:15]} 41. Qa4+ {[%emt 0:02:29]} Kd6 {[%emt 0:00:00]} 42. Kf2 {[%emt 0:03:25]} Qh4+ {[%emt 0:05:11]} 43. Kg1 {[%emt 0:00:24]} Qg5 {[%emt 0:00:17]} 44. Qb4+ {[%emt 0:03:37]} Kc6 {[%emt 0:00:14]} 45. Qa4+ {[%emt 0:00:25]} Kd6 {[%emt 0:00:13]} 46. Qb4+ {[%emt 0:13:16]} Kc6 {[%emt 0:01:06]} 47. Qa4+ {[%emt 0:00:32]} 1/2-1/2

[Event "Olomouc Chess Summer-IM 2022"]
[Site "Olomouc"]
[Date "2022.08.15"]
[Round "4.13"]
[White "Paseka, Matyas"]
[Black "Saypuri Srithan"]
[Result "1/2-1/2"]
[ECO "C42"]
[WhiteElo "2218"]
[BlackElo "1923"]
[Annotator "TA"]
[PlyCount "68"]
[EventDate "2022.08.10"]
[EventCountry "CZE"]
[SourceTitle "playchess.com"]
[Source "ChessBase"]
[SourceQuality "1"]
[TimeControl "40/5400+30:1800+30"]

{[%evp 15,68,20,36,31,33,32,34,17,13,4,49,22,29,25,37,18,23,20,31,-6,-10,-5,-8,-7,-6,-6,-7,-14,-9,-9,0,0,0,-1,0,0,0,0,0,0,0,-2,0,0,0,0,0,0,0,0,0,-7,-7,-7,-7]} 1. e4 {[%emt 0:00:02]} e5 {[%emt 0:03:14]} 2. Nf3 {[%emt 0:00:10]} Nf6 {[%emt 0:00:09]} 3. Nxe5 {[%emt 0:00:14]} d6 {[%emt 0:00:05]} 4. Nf3 {[%emt 0:00:09]} Nxe4 {[%emt 0:00:06]} 5. Nc3 {[%emt 0:00:11]} Nxc3 {[%emt 0:00:19]} 6. dxc3 {[%emt 0:00:07]} Be7 {[%emt 0:00:04]} 7. Be3 {[%emt 0:00:13]} Nc6 {[%emt 0:00:04]} 8. Qd2 {[%emt 0:00:13]} Be6 {[%emt 0:00:04] 8...Bf5 is the fancy move.} 9. O-O-O {[%emt 0:01:15] C42: Petroff Defence: 3 Nxe5 and unusual White 3rd moves.} Qd7 {[%emt 0:00:15]} (9... Bxa2 $2 10. b3 $18) 10. Kb1 {[%emt 0:01:12]} a6 {[%emt 0:00:04]} 11. Nd4 {[%emt 0:05:46] White is slightly better.} Nxd4 {[%emt 0:00:32]} 12. Bxd4 {[%emt 0:00:19]} Rg8 {[%emt 0:04:03]} 13. Bd3 {[%emt 0:03:31] [#]} g6 $146 {[%emt 0:00:18]} ({Predecessor:} 13... c5 14. Be3 Rh8 15. Be4 Qa4 16. Bd5 Bxd5 17. Qxd5 Qd7 18. Bxc5 Rd8 19. Bb6 Rc8 {1-0 (38) Abou Wally,A (1624)-Fedgenhaeuer,P (1354) Kiel 2022}) 14. Rhe1 {[%emt 0:02:16]} O-O-O {[%emt 0:03:39]} 15. f3 {[%emt 0:03:59]} Rge8 {[%emt 0:09:03]} 16. c4 {[%emt 0:07:07]} Bf5 {[%emt 0:04:09]} 17. Re2 {[%emt 0:28:48]} Bxd3 {[%emt 0:06:31] The position is equal.} 18. Qxd3 {[%emt 0:00:13]} Bh4 {[%emt 0:03:05]} 19. g3 {[%emt 0:10:01]} Rxe2 {[%emt 0:00:06]} 20. Qxe2 {[%emt 0:00:06]} Re8 {[%emt 0:00:06]} 21. Qf2 {[%emt 0:00:10]} Bd8 {[%emt 0:00:58]} 22. Re1 {[%emt 0:07:57]} Qc6 {[%emt 0:04:56][%cal Oc6f3]} 23. Rxe8 {[%emt 0:00:27]} Qxe8 {[%emt 0:00:03]} 24. Qe3 {[%emt 0:00:33]} Qxe3 {[%emt 0:00:56]} 25. Bxe3 $11 {[%emt 0:00:04][%mdl 4096] Endgame KB-KB} Be7 {[%emt 0:00:07]} 26. c3 {[%emt 0:01:55]} Kd7 {[%emt 0:00:22]} 27. Kc2 {[%emt 0:00:00]} Ke6 {[%emt 0:00:05]} 28. Kd3 {[%emt 0:00:00]} h5 {[%emt 0:06:00]} 29. h3 {[%emt 0:02:58]} Kf5 {[%emt 0:09:34]} 30. g4+ {[%emt 0:00:34]} hxg4 {[%emt 0:00:45]} 31. hxg4+ {[%emt 0:01:08]} Ke5 {[%emt 0:00:20]} 32. f4+ {[%emt 0:02:32]} Ke6 {[%emt 0:01:00]} 33. Ke4 {[%emt 0:01:06]} f5+ {[%emt 0:05:57]} 34. gxf5+ {[%emt 0:00:06]} gxf5+ {[%emt 0:00:03] Weighted Error Value: White=0.06 (flawless) /Black=0.04 (flawless)} 1/2-1/2

[Event "Olomouc Chess Summer-IM 2022"]
[Site "Olomouc"]
[Date "2022.08.15"]
[Round "4.14"]
[White "Nemec, Jachym"]
[Black "Mannion, Stephen R"]
[Result "1/2-1/2"]
[ECO "D20"]
[WhiteElo "2357"]
[BlackElo "2232"]
[Annotator "TA"]
[PlyCount "47"]
[EventDate "2022.08.10"]
[EventCountry "CZE"]
[SourceTitle "playchess.com"]
[Source "ChessBase"]
[SourceQuality "1"]
[TimeControl "40/5400+30:1800+30"]

{[%evp 9,47,29,35,47,110,52,60,62,47,61,68,56,43,43,41,5,20,6,20,-10,0,0,0,-25,-11,-16,-9,-13,-18,-18,-12,-16,-4,-25,-30,-21,0,0,0,-28]} 1. d4 {[%emt 0:00:02]} d5 {[%emt 0:00:18]} 2. c4 {[%emt 0:00:05]} dxc4 {[%emt 0:00:06]} 3. e4 {[%emt 0:00:03]} b5 {[%emt 0:01:20]} 4. a4 {[%emt 0:00:11]} c6 {[%emt 0:00:06]} 5. axb5 {[%emt 0:00:05]} cxb5 {[%emt 0:00:05]} 6. Nc3 {[%emt 0:00:18] D20: Queen's Gambit Accepted: 3 e3 and 3 e4.} Qb6 $1 {[%emt 0:00:12][%mdl 4] [#] now scores much better than the old 6...a6.} (6... a6 $14) 7. b3 {[%emt 0:20:57]} (7. Nd5 $1 $16 {[%cal Rd5b6]} Qc6 8. Bf4) 7... e6 $1 $14 {[%emt 0:01:20]} 8. bxc4 {[%emt 0:01:36] aiming for c5. White is slightly better.} Bb4 {[%emt 0:00:18]} 9. Bd2 {[%emt 0:05:52] And now c5 would win.} bxc4 {[%emt 0:01:18]} 10. Bxc4 {[%emt 0:01:38]} Ne7 {[%emt 0:09:23]} 11. Nge2 {[%emt 0:01:55]} O-O {[%emt 0:03:38]} 12. O-O {[%emt 0:00:38]} (12. Na4 $5 {[%cal Ra4b6]} Qa5 13. Bc3 $14) 12... a5 $1 {[%emt 0:06:57]} 13. d5 {[%emt 0:07:51]} Ba6 {[%emt 0:11:23]} 14. Be3 {[%emt 0:03:01]} Qd6 {[%emt 0:02:27] [#]} 15. Bxa6 $146 {[%emt 0:15:22]} ({Predecessor:} 15. Qb3 Bxc4 16. Qxc4 Rc8 17. Qb3 exd5 18. Rfd1 Nd7 19. exd5 Nf5 20. Bd2 Qa6 21. Bf4 {½-½ (37) Tsolakidou,S (2379)-Song,E (2365) Charlotte 2021}) 15... Nxa6 {[%emt 0:01:43]} 16. Qb3 {[%emt 0:03:01]} exd5 {[%emt 0:10:46]} 17. Nxd5 {[%emt 0:01:34]} (17. Rfd1 {looks sharper.} Rfc8 18. Nxd5 Nc5 19. Qc4) 17... Nxd5 {[%emt 0:06:25]} 18. exd5 {[%emt 0:02:02]} Rfd8 {[%emt 0:12:09]} 19. Rfd1 {[%emt 0:00:38]} Nc5 {[%emt 0:01:24]} 20. Qc4 {[%emt 0:03:17]} Qa6 {[%emt 0:11:59]} 21. Qg4 {[%emt 0:06:01]} Qg6 {[%emt 0:01:46]} 22. Qc4 {[%emt 0:02:25]} Qa6 {[%emt 0:00:12]} 23. Qg4 {[%emt 0:00:56]} Qg6 24. Qc4 {Weighted Error Value: White=0.11 (very precise) /Black=0.05 (flawless)} 1/2-1/2

[Event "Olomouc Chess Summer-IM 2022"]
[Site "Olomouc"]
[Date "2022.08.15"]
[Round "4.15"]
[White "Mica, Marek"]
[Black "Biolek, Richard Jr."]
[Result "1-0"]
[ECO "D43"]
[WhiteElo "2304"]
[BlackElo "2437"]
[Annotator "TA"]
[PlyCount "53"]
[EventDate "2022.08.10"]
[EventCountry "CZE"]
[SourceTitle "playchess.com"]
[Source "ChessBase"]
[SourceQuality "1"]
[TimeControl "40/5400+30:1800+30"]

{[%evp 13,53,0,26,-10,-2,6,61,55,75,72,124,117,133,128,268,269,266,263,277,243,373,366,533,550,538,528,518,382,329,322,311,228,436,443,436,431,414,376,346,315,465,453]} 1. d4 {[%emt 0:00:05]} d5 {[%emt 0:05:29]} 2. c4 {[%emt 0:00:23]} c6 {[%emt 0:00:07]} 3. Nf3 {[%emt 0:00:25]} Nf6 {[%emt 0:00:04]} 4. Nc3 {[%emt 0:00:28]} e6 {[%emt 0:00:08]} 5. g3 {[%emt 0:03:27]} dxc4 {[%emt 0:02:13]} 6. Bg2 {[%emt 0:03:59]} b5 {[%emt 0:01:28]} 7. Ne5 {[%emt 0:01:55]} Nd5 {[%emt 0:02:16] 7...a6 gains popularity.} 8. e4 {[%emt 0:01:36] E04: Open Catalan: 5 Nf3.} Nxc3 {[%emt 0:02:44]} 9. bxc3 {[%emt 0:00:07]} Bb7 {[%emt 0:02:03]} (9... Bd6 $11) 10. Qh5 $14 {[%emt 0:02:18][%csl Ge5][%cal Rh5f7][%mdl 1024] White has compensation. White is slightly better.} Qc7 {[%emt 0:11:33]} 11. Bf4 $1 {[%emt 0:03:26][%cal Oe5c4] aiming for Nxc4!} Qe7 {[%emt 0:08:36]} (11... g6 $142 12. Qf3 Qe7) 12. Bg5 $40 {[%emt 0:05:40][%mdl 128] White has strong attack. White is much more active.} Qc7 {[%emt 0:00:21] [#]} 13. Bd8 $1 {[%emt 0:03:06][%mdl 64] Deflection, Decoy} Kxd8 {[%emt 0:07:06]} (13... g6 $16 14. Bxc7 gxh5) 14. Nxf7+ $18 {[%emt 0:01:21]} Kc8 {[%emt 0:01:22]} 15. Nxh8 {[%emt 0:00:24]} g6 {[%emt 0:00:20] [#]} 16. Qf3 $146 {[%emt 0:01:16]} ({Predecessor:} 16. Qe5 Qe7 17. Bh3 Kd7 18. Rd1 Bg7 19. Bxe6+ Ke8 20. Bf7+ Kf8 21. Nxg6+ hxg6 22. Qxe7+ Kxe7 23. Bxg6 {0-1 (41) Bashylina,L (2043)-Blagojevic,T (2260) Terme Catez 2022}) 16... Bg7 {[%emt 0:00:21]} (16... Ba3 $142 17. Rb1 Qe7) 17. Nf7 {[%emt 0:00:19]} c5 {[%emt 0:01:42]} (17... Nd7 $142 18. e5 Bf8) 18. dxc5 {[%emt 0:00:58] Hoping for Nd6+.} Nd7 {[%emt 0:01:09]} 19. Nd6+ {[%emt 0:01:41]} Kb8 {[%emt 0:00:33]} 20. Nxb7 {[%emt 0:00:24]} Ne5 {[%emt 0:00:00] [#]} 21. Qe3 {[%emt 0:01:38] Strongly threatening Nd6.} Kxb7 {[%emt 0:00:22]} 22. O-O {[%emt 0:00:48]} Rc8 $2 {[%emt 0:08:24]} (22... Bf8 23. a4 Bxc5) 23. a4 {[%emt 0:06:40]} Qxc5 {[%emt 0:00:28]} 24. Qxc5 {[%emt 0:00:42]} ({Not} 24. axb5 Qxe3 25. fxe3 Bh6 $18) 24... Rxc5 {[%emt 0:00:02]} 25. axb5 {[%emt 0:00:55]} Rxb5 {[%emt 0:00:06]} 26. Ra4 {[%emt 0:00:35]} Rb3 {[%emt 0:01:06]} (26... Bf8 $142 27. Bh3 Rb2 28. Bxe6 Bc5 29. Bxc4 Nxc4) 27. Rfa1 {[%emt 0:01:09] Black did not feel at home in the position after the opening.  Weighted Error Value: White=0.17 (very precise) /Black=0.54} 1-0

[Event "Olomouc Chess Summer-IM 2022"]
[Site "Olomouc"]
[Date "2022.08.16"]
[Round "5.6"]
[White "Kukelko, Alexey"]
[Black "Jurek, Josef"]
[Result "1/2-1/2"]
[ECO "C09"]
[WhiteElo "2260"]
[BlackElo "2212"]
[Annotator "NA RC"]
[PlyCount "61"]
[EventDate "2022.08.10"]
[EventCountry "CZE"]
[SourceTitle "playchess.com"]
[Source "ChessBase"]
[SourceQuality "1"]
[TimeControl "40/5400+30:1800+30"]

1. e4 {[%emt 0:00:02]} e6 {[%emt 0:00:15]} 2. d4 {[%emt 0:00:52]} d5 {[%emt 0:00:12]} 3. Nd2 {[%emt 0:00:53]} c5 {[%emt 0:00:42]} 4. Ngf3 {[%emt 0:02:43]} Nc6 {[%emt 0:01:12]} 5. exd5 {[%emt 0:00:37]} exd5 {[%emt 0:00:52]} 6. Be2 {[%emt 0:00:17]} Nf6 {[%emt 0:05:13]} 7. O-O {[%emt 0:00:43]} Qc7 {[%emt 0:03:28]} 8. dxc5 {[%emt 0:12:33]} Bxc5 {[%emt 0:01:31]} 9. Nb3 {[%emt 0:03:30]} Bb6 {[%emt 0:07:48]} 10. Nfd4 {[%emt 0:05:33]} Nxd4 {[%emt 0:05:58]} 11. Nxd4 {[%emt 0:00:02]} O-O {[%emt 0:01:31]} 12. Be3 {[%emt 0:00:11]} a6 {[%emt 0:02:23]} 13. c3 {[%emt 0:00:54]} Re8 {[%emt 0:02:22]} 14. Nc2 {[%emt 0:05:49]} Bf5 {[%emt 0:07:53]} 15. Bxb6 {[%emt 0:02:14]} Qxb6 {[%emt 0:00:15]} 16. Bd3 {[%emt 0:00:02]} Be4 {[%emt 0:03:34]} 17. Rb1 {[%emt 0:04:31]} Re5 {[%emt 0:02:00]} 18. Nd4 {[%emt 0:00:18]} Rae8 {[%emt 0:02:23]} 19. Re1 {[%emt 0:02:34]} Nd7 {[%emt 0:04:41]} 20. Bc2 {[%emt 0:06:10]} Nf8 {[%emt 0:14:30]} 21. Qd2 {[%emt 0:01:09]} Ne6 {[%emt 0:06:30]} 22. Nf3 {[%emt 0:01:18]} Bxc2 {[%emt 0:03:18]} 23. Qxc2 {[%emt 0:01:31]} Rxe1+ {[%emt 0:02:30]} 24. Rxe1 {[%emt 0:00:03]} Rd8 {[%emt 0:04:54]} 25. Rd1 {[%emt 0:01:34]} g6 {[%emt 0:01:48]} 26. Qd2 {[%emt 0:00:45]} a5 {[%emt 0:03:27]} 27. h4 {[%emt 0:08:07]} h5 {[%emt 0:01:02]} 28. b3 {[%emt 0:03:52]} Rc8 {[%emt 0:01:40]} 29. g3 {[%emt 0:03:06]} Qc5 {[%emt 0:01:03]} 30. Qxd5 {[%emt 0:02:32]} Qxd5 {[%emt 0:01:02]} 31. Rxd5 {[%emt 0:00:03]} 1/2-1/2

[Event "Olomouc Chess Summer-IM 2022"]
[Site "Olomouc"]
[Date "2022.08.16"]
[Round "5.7"]
[White "Jasny, Stanislav"]
[Black "Stinka, Jakub"]
[Result "1/2-1/2"]
[ECO "D53"]
[WhiteElo "2248"]
[BlackElo "2329"]
[Annotator "TA"]
[PlyCount "43"]
[EventDate "2022.08.10"]
[EventCountry "CZE"]
[SourceTitle "playchess.com"]
[Source "ChessBase"]
[SourceQuality "1"]
[TimeControl "40/5400+30:1800+30"]

{[%evp 23,25,19,27,22]} 1. d4 {[%emt 0:00:13]} Nf6 {[%emt 0:00:20]} 2. c4 {[%emt 0:00:08]} e6 {[%emt 0:00:07]} 3. Nc3 {[%emt 0:00:52]} d5 {[%emt 0:00:24]} 4. Bg5 {[%emt 0:00:42]} Be7 {[%emt 0:00:48]} 5. e3 {[%emt 0:00:09]} Nbd7 {[%emt 0:01:51]} 6. Nf3 {[%emt 0:00:16]} h6 {[%emt 0:00:22]} 7. Bh4 {[%emt 0:00:08]} O-O {[%emt 0:00:10]} 8. Qc2 {[%emt 0:01:26]} c5 {[%emt 0:01:17]} 9. cxd5 {[%emt 0:01:19]} Nxd5 {[%emt 0:00:18]} 10. Bxe7 {[%emt 0:00:08]} Qxe7 {[%emt 0:00:15]} 11. Nxd5 {[%emt 0:00:32]} exd5 {[%emt 0:00:03]} 12. dxc5 {[%emt 0:00:20]} Nxc5 {[%emt 0:00:08]} 13. Be2 {[%emt 0:00:18] [#] An uneventful encounter. D61: Queen's Gambit Declined: Classical: 7 Qc2.} {Predecessor:} Bg4 $146 14. O-O Rac8 15. Rad1 Rfd8 16. h3 Ne6 17. Qa4 Bxf3 18. Bxf3 Qc5 19. b4 Qc4 20. Qxa7 d4 21. exd4 Nxd4 22. Bxb7 {1-0 (40) Carlsen,M (2847)-Karjakin,S (2757) chess24.com INT 2021} 1/2-1/2